bitfinex/quotes_ETHUSD_20220119
["timestamp","ask_amount","ask_price","bid_price","bid_amount"]
[1642563120951,0.79196,3158.3,3158.0,2.69310561]
[1642563121150,0.79196,3158.3,3158.0,0.0022737]
[1642563121351,0.79196,3158.3,3158.1,0.00170527]
[1642563121550,0.79196,3158.3,3157.8,1.82855778]
[1642563121751,0.79196,3158.3,3157.9,2.69031228]
[1642563121950,0.79196,3158.3,3157.9,2.6931544]
[1642563122150,0.79196,3158.3,3158.0,2.69258598]
[1642563122355,0.79196,3158.3,3158.1,2.69031228]
[1642563122556,0.49916,3158.3,3158.1,0.00170527]
[1642563122755,0.49916,3158.3,3158.2,0.00113685]
[1642563122996,0.49916,3158.3,3157.8,1.80228136]
[1642563123196,0.49916,3158.3,3157.9,2.69032421]
[1642563123394,0.49916,3158.3,3157.9,2.69316633]
[1642563123596,0.49916,3158.3,3158.0,2.69259791]
[1642563123793,0.49916,3158.3,3158.1,2.69032421]
[1642563123995,0.49916,3158.3,3158.1,0.00170527]
[1642563124301,5.8,3158.2,3157.6,2.69046102]
[1642563124502,1.58456,3158.1,3157.6,0.00341054]
[1642563124700,2.80033767,3157.7,3157.6,0.00341054]
[1642563124898,0.75533767,3157.7,3157.1,2.69703435]
[1642563125098,0.75533767,3157.7,3157.0,7.499]
[1642563125099,1.0,3157.6,3157.2,2.69646592]
[1642563125299,1.455,3157.6,3157.3,2.69078169]
[1642563125500,3.00649597,3157.6,3157.3,2.6958975]
[1642563125702,3.79873597,3157.6,3157.4,2.69532908]
[1642563125903,3.5,3157.4,3157.0,7.499]
[1642563126103,3.70220575,3157.3,3157.1,2.69100344]
[1642563126300,2.59663324,3157.2,3157.1,0.00170527]
[1642563127351,2.41119946,3157.2,3157.1,0.00170527]
[1642563127652,0.1655,3157.2,3157.1,0.00170527]
[1642563128257,0.1655,3157.2,3157.0,6.85505985]
[1642563129755,0.79234,3157.1,3157.0,6.85505985]
[1642563129956,1.24734,3157.1,3157.0,9.54612159]
[1642563132592,0.95474,3157.1,3157.0,9.54612159]
[1642563132994,1.95474,3157.1,3157.0,9.54612159]
[1642563134650,1.95474,3157.1,3157.0,6.85505985]
[1642563136176,1.95474,3157.1,3157.0,1.32627071]
[1642563136177,9.11793722,3157.1,3157.0,1.32627071]
[1642563136455,9.11793722,3157.1,3156.4,1.2463]
[1642563136456,0.79261,3156.9,3156.0,3.8693]
[1642563136652,0.79261,3156.7,3156.1,2.69139887]
[1642563136850,2.75148048,3156.6,3156.1,2.6970831]
[1642563137053,1.0,3156.5,3156.2,2.69139887]
[1642563137349,2.48083798,3156.4,3156.3,0.00454739]
[1642563137550,2.48083798,3156.4,3156.3,2.69594626]
[1642563137750,0.79268,3156.1,3155.9,1.1774]
[1642563138002,0.79268,3156.1,3155.5,4.0861]
[1642563138193,0.79268,3156.1,3156.0,0.00170527]
[1642563138391,0.79268,3156.1,3155.6,0.00397896]
[1642563138995,0.79264,3155.9,3155.6,0.00397896]
[1642563139896,0.79264,3155.9,3155.4,0.00511581]
[1642563140497,1.58528,3155.9,3155.4,0.00511581]
[1642563142839,1.29128,3155.9,3155.4,0.00511581]
[1642563144042,2.29128,3155.9,3155.4,0.00511581]
[1642563144451,3.08396,3155.9,3155.4,0.00511581]
[1642563144648,1.58533,3155.8,3155.4,0.00511581]
[1642563144949,0.79266,3155.7,3155.3,0.00568423]
[1642563145599,2.37802,3155.7,3155.3,0.00568423]
[1642563145796,0.79267,3155.6,3155.3,0.00568423]
[1642563146507,0.79267,3155.6,3155.1,1.90849596]
[1642563146803,0.79267,3155.6,3155.2,0.00625265]
[1642563148201,0.18397,3155.6,3155.2,0.00625265]
[1642563148401,2.16771957,3155.6,3155.2,0.00625265]
[1642563148600,0.18397,3155.6,3155.2,0.00625265]
[1642563149004,0.18397,3155.6,3155.1,0.00682108]
[1642563149860,1.18397,3155.6,3155.1,0.00682108]
[1642563150851,1.58545,3155.5,3155.1,0.00682108]
[1642563151054,0.79275,3155.4,3155.1,0.00682108]
[1642563151352,1.58549,3155.4,3155.0,0.0073895]
[1642563151753,1.58549,3155.4,3154.9,0.00795792]
[1642563152552,1.58549,3155.4,3154.9,1.6096328]
[1642563153008,1.58549,3155.4,3155.0,0.0073895]
[1642563153395,4.78199,3155.4,3155.0,0.0073895]
[1642563157648,4.78199,3155.4,3155.1,2.69172073]
[1642563158049,4.78199,3155.4,3155.2,0.00625265]
[1642563158249,4.78199,3155.4,3155.3,2.69172073]
[1642563158448,4.49079,3155.4,3155.3,2.69172073]
[1642563158648,4.49079,3155.4,3155.3,2.69740496]
[1642563159357,4.49079,3155.4,3155.3,2.64558005]
[1642563159358,4.99275,3155.4,3155.3,2.64558005]
[1642563159554,5.44775,3155.4,3155.3,0.00568423]
[1642563160053,5.44775,3155.4,3154.8,0.00852635]
[1642563160054,6.24068,3155.4,3154.8,0.00852635]
[1642563160252,1.0,3155.3,3154.8,0.00852635]
[1642563160507,3.61026972,3155.1,3154.8,0.00852635]
[1642563160708,4.06526972,3155.1,3154.8,0.00852635]
[1642563160906,1.0,3155.0,3154.5,2.01023162]
[1642563161105,1.79297,3155.0,3154.6,0.00966319]
[1642563161712,2.58594,3155.0,3154.6,0.00966319]
[1642563161914,1.58598,3154.9,3154.4,0.01080004]
[1642563163309,2.37889,3154.8,3154.4,0.01080004]
[1642563163509,2.08619,3154.8,3154.4,0.01080004]
[1642563163708,3.08619,3154.8,3154.3,0.01136847]
[1642563165853,4.50634315,3154.8,3154.3,0.01136847]
[1642563166452,5.29929315,3154.8,3154.3,0.01136847]
[1642563166656,0.79295,3154.6,3154.3,0.01136847]
[1642563167455,0.2929548,3154.4,3154.0,0.01307374]
[1642563167657,0.79298,3154.3,3154.0,0.01307374]
[1642563168699,0.49228,3154.3,3154.0,0.01307374]
[1642563169301,0.49228,3154.3,3153.8,0.3]
[1642563169302,0.49228,3154.3,3153.9,0.01364216]
[1642563169500,1.28526,3154.3,3153.9,0.01364216]
[1642563170505,1.28526,3154.3,3153.8,1.60167488]
[1642563170506,1.28526,3154.3,3153.8,1.61588546]
[1642563170700,1.28526,3154.3,3153.9,0.01364216]
[1642563171742,0.49228,3154.3,3153.9,0.01364216]
[1642563172746,1.28527,3154.3,3153.9,0.01364216]
[1642563173545,4.48527,3154.3,3153.9,0.01364216]
[1642563173844,4.19357,3154.3,3153.9,0.01364216]
[1642563174046,1.0,3154.2,3153.9,0.01364216]
[1642563174247,1.0,3154.2,3153.8,0.01421058]
[1642563174448,1.0,3154.2,3153.8,3.31667886]
[1642563174649,1.0,3154.2,3153.8,0.01421058]
[1642563174849,1.0,3154.2,3153.9,0.01364216]
[1642563175053,1.0,3154.2,3153.8,0.01421058]
[1642563175694,1.0,3154.2,3153.8,1.61588546]
[1642563175893,1.0,3154.2,3153.8,0.01421058]
[1642563176094,1.0,3154.2,3153.9,0.01364216]
[1642563176295,1.0,3154.2,3153.8,1.61588546]
[1642563176599,1.0,3154.2,3153.9,0.01364216]
[1642563178797,0.7075,3154.2,3153.9,0.01364216]
[1642563178999,4.19357,3154.3,3153.9,0.01364216]
[1642563179243,4.19357,3154.3,3154.0,2.6926795]
[1642563179448,4.19357,3154.3,3154.1,2.6926795]
[1642563179649,4.19357,3154.3,3154.2,2.6926795]
[1642563179848,4.19357,3154.3,3154.2,2.70461639]
[1642563180254,5.19357,3154.3,3154.2,2.70461639]
[1642563184000,4.89027,3154.3,3154.2,2.70461639]
[1642563185310,5.19027,3154.3,3154.2,2.70461639]
[1642563188346,7.67455773,3154.3,3154.2,0.01193689]
[1642563188746,5.19027,3154.3,3153.4,0.01648428]
[1642563188946,1.32507683,3153.5,3153.4,0.01648428]
[1642563189148,1.02967683,3153.5,3153.4,4.36648428]
[1642563189352,1.02967683,3153.5,3153.4,0.01648428]
[1642563189751,1.02967683,3153.5,3153.2,0.01762112]
[1642563190603,1.82284683,3153.5,3153.3,0.53873097]
[1642563190997,1.82284683,3153.5,3153.4,2.46648428]
[1642563191399,1.82284683,3153.5,3153.4,0.01648428]
[1642563191601,2.61603683,3153.5,3153.4,0.01648428]
[1642563192098,3.61603683,3153.5,3153.4,0.01648428]
[1642563192299,2.61603683,3153.5,3153.0,3.33060234]
[1642563192499,2.61603683,3153.5,3153.0,1.62043285]
[1642563192700,2.61603683,3153.5,3153.1,0.01818955]
[1642563192701,1.0,3153.4,3153.1,0.01818955]
[1642563193105,0.79323,3153.3,3153.2,0.53873302]
[1642563193308,0.79323,3153.3,3153.2,0.49459154]
[1642563193503,0.79323,3153.3,3153.2,0.51221266]
[1642563194099,0.50363,3153.3,3153.2,0.51221266]
[1642563194351,0.50363,3153.3,3153.2,0.01762112]
[1642563194854,0.79352,3153.1,3152.7,0.02046324]
[1642563195052,2.09352,3153.1,3152.7,0.02046324]
[1642563195253,2.09352,3153.1,3152.2,2.79047488]
[1642563195254,2.0418896,3153.0,3152.4,0.02216851]
[1642563195551,2.0418896,3153.0,3152.3,0.02273693]
[1642563195552,1.21408302,3152.5,3152.3,0.02273693]
[1642563196151,0.455,3152.7,3152.2,0.02330536]
[1642563196357,0.79344,3152.5,3152.2,0.02330536]
[1642563196552,0.36528873,3152.3,3152.2,0.02330536]
[1642563196951,0.36528873,3152.3,3152.1,0.02387378]
[1642563197151,1.58688,3152.5,3152.3,0.73057745]
[1642563197559,1.58688,3152.5,3152.4,3.27216851]
[1642563198017,3.04176,3152.7,3152.4,3.27216851]
[1642563198412,3.04176,3152.7,3152.5,0.02160009]
[1642563198609,1.0,3152.6,3152.5,0.02160009]
[1642563198908,1.0,3152.6,3152.4,0.02216851]
[1642563199109,1.24838,3152.7,3152.4,0.02216851]
[1642563199307,0.94898,3152.7,3152.4,0.02216851]
[1642563200917,0.1556,3152.7,3152.4,0.02216851]
[1642563203655,0.94897,3152.7,3152.4,0.02216851]
[1642563203953,0.94897,3152.7,3152.5,2.69393503]
[1642563204154,0.30599597,3152.6,3152.5,2.69393503]
[1642563204456,0.01489597,3152.6,3152.5,2.69393503]
[1642563204655,1.01489597,3152.6,3152.5,2.69393503]
[1642563204855,0.79342,3152.5,3152.3,0.73057745]
[1642563205254,0.79342,3152.5,3152.4,0.02216851]
[1642563205503,1.01489597,3152.6,3152.4,0.02216851]
[1642563206008,1.38424854,3152.5,3152.4,0.02216851]
[1642563209247,1.80831597,3152.6,3152.4,0.02216851]
[1642563209451,1.51591597,3152.6,3152.4,0.02216851]
[1642563211755,1.97091597,3152.6,3152.4,0.02216851]
[1642563211953,0.37659575,3152.5,3152.4,0.02216851]
[1642563212756,5.35,3152.4,3151.4,7.06692091]
[1642563213005,0.79374,3152.0,3151.3,3.617]
[1642563213203,0.455,3151.9,3151.5,0.00511581]
[1642563213407,0.455,3151.9,3151.4,0.00568424]
[1642563213907,2.0426009,3151.9,3151.4,0.00568424]
[1642563214107,2.0426009,3151.9,3151.0,0.00795793]
[1642563214108,4.5909884,3151.8,3151.0,0.00795793]
[1642563214309,1.24885,3151.7,3151.0,0.00795793]
[1642563214508,1.95355,3151.7,3151.0,0.00795793]
[1642563214707,0.3,3151.6,3151.0,0.00795793]
[1642563214907,2.44870629,3151.5,3150.9,0.00852635]
[1642563215106,4.24258879,3151.5,3150.9,0.00852635]
[1642563215311,0.79393,3151.3,3150.9,0.00852635]
[1642563215508,2.7485375,3151.3,3150.9,0.00852635]
[1642563215709,1.44806066,3151.0,3150.9,0.00852635]
[1642563216216,1.90306066,3151.0,3150.9,0.00852635]
[1642563216411,2.69700066,3151.0,3150.9,0.00852635]
[1642563216611,3.69700066,3151.0,3150.9,0.00852635]
[1642563218058,5.1,3150.8,3150.7,0.007]
[1642563218268,5.5,3150.7,3149.7,7.2400185]
[1642563218461,1.24922,3150.6,3149.7,1.5952182]
[1642563218663,0.79414,3150.5,3149.7,1.5952182]
[1642563218964,0.455,3150.4,3149.7,1.5952182]
[1642563219159,0.79415,3149.9,3149.7,1.5952182]
[1642563219357,0.7941348,3150.3,3150.2,0.34291975]
[1642563219558,0.9549348,3150.3,3150.2,0.34291975]
[1642563219757,0.9549348,3150.3,3150.2,0.34689872]
[1642563219960,0.9549348,3150.3,3150.2,3.04284339]
[1642563220360,2.48246618,3150.3,3150.2,3.04284339]
[1642563220606,3.27659618,3150.3,3150.2,3.04284339]
[1642563220807,5.37080426,3150.3,3150.2,3.04284339]
[1642563221305,5.26399113,3150.3,3150.2,3.04284339]
[1642563221523,4.9,3150.2,3149.7,1.5952182]
[1642563221713,0.455,3150.1,3149.7,1.5952182]
[1642563221916,6.1,3149.9,3149.7,0.00227369]
[1642563222113,6.1,3149.9,3148.9,0.007]
[1642563222114,5.05,3149.7,3148.9,0.007]
[1642563222509,1.55456605,3149.3,3149.0,0.00454739]
[1642563222711,0.455,3149.2,3149.0,0.00454739]
[1642563222908,0.455,3149.2,3148.6,1.51322227]
[1642563223109,1.58891,3149.1,3148.6,1.51322227]
[1642563223313,2.043931,3149.0,3148.7,0.00170527]
[1642563223525,3.17784,3149.1,3148.7,0.00170527]
[1642563223526,0.45504101,3149.1,3148.7,0.00170527]
[1642563223714,0.455,3149.0,3148.7,0.00170527]
[1642563223914,0.7945,3148.9,3148.4,0.00341054]
[1642563224121,3.27544171,3148.9,3148.4,0.00341054]
[1642563224370,2.044,3148.9,3148.4,0.00341054]
[1642563224571,0.7945,3148.8,3148.4,0.00341054]
[1642563224771,0.4949,3148.8,3148.4,0.00341054]
[1642563224974,2.53467272,3148.8,3148.4,0.00341054]
[1642563225572,3.32919542,3148.8,3148.3,2.42164898]
[1642563225772,3.32919542,3148.8,3148.4,0.00341054]
[1642563225972,1.2894227,3148.8,3148.4,0.00341054]
[1642563226373,3.633,3148.9,3148.8,2.05384744]
[1642563226573,2.8385,3148.9,3148.8,2.05384744]
[1642563226776,2.8385,3148.9,3148.8,2.05498429]
[1642563226973,3.14998232,3148.9,3148.8,2.05498429]
[1642563228406,5.13266857,3148.9,3148.8,2.05498429]
[1642563229107,3.14998232,3148.9,3148.8,2.05498429]
[1642563229708,2.85868232,3148.9,3148.8,2.05498429]
[1642563230717,5.5833995,3149.2,3148.8,2.05498429]
[1642563230718,3.99428,3149.2,3148.8,2.05498429]
[1642563230912,3.2,3149.2,3148.8,2.05498429]
[1642563232059,3.2,3149.2,3148.8,3.64045645]
[1642563232963,3.2,3149.2,3148.9,1.58547216]
[1642563233163,3.2,3149.2,3148.8,3.64045645]
[1642563233362,0.79429,3149.3,3149.2,3.99104869]
[1642563233564,2.38483374,3149.8,3149.7,0.53242379]
[1642563233963,2.68483374,3149.8,3149.7,0.53242379]
[1642563234366,1.570031,3149.8,3149.7,0.53242379]
[1642563234562,1.870031,3149.8,3149.7,0.53242379]
[1642563234763,2.664301,3149.8,3149.7,0.53242379]
[1642563234963,2.365701,3149.8,3149.7,0.53242379]
[1642563235166,2.364301,3149.8,3149.7,0.53242379]
[1642563235624,3.158551,3149.8,3149.7,0.53242379]
[1642563236313,3.458551,3149.8,3149.7,0.53242379]
[1642563236516,2.664301,3149.8,3149.7,3.2291365]
[1642563237319,6.1,3149.7,3149.2,3.99104869]
[1642563237518,6.1,3149.7,3149.3,2.69697484]
[1642563237519,4.04395,3149.6,3149.3,2.69697484]
[1642563237716,20.12877,3149.5,3149.3,2.69697484]
[1642563237922,20.20764852,3149.5,3149.3,2.69697484]
[1642563238120,4.0572737,3149.4,3149.3,2.69697484]
[1642563238320,3.72609242,3149.3,3149.2,3.99104869]
[1642563238521,4.18109242,3149.3,3149.2,3.99104869]
[1642563238732,0.86167621,3149.3,3149.2,3.99104869]
[1642563239858,3.13121149,3149.3,3149.2,3.99104869]
[1642563240060,6.1,3149.2,3148.8,2.05498429]
[1642563240262,2.84875248,3149.1,3148.8,2.05498429]
[1642563240460,3.84875248,3149.1,3148.8,2.05498429]
[1642563240659,6.23245118,3149.1,3148.8,2.05498429]
[1642563241059,8.61613118,3149.1,3148.8,2.05498429]
[1642563241261,0.3,3149.0,3148.8,2.05498429]
[1642563241459,0.455,3148.9,3148.8,2.05498429]
[1642563241861,2.4208385,3148.9,3148.8,2.05498429]
[1642563242061,4.4,3148.8,3148.0,1.1684]
[1642563242267,2.50729226,3148.7,3148.0,1.1684]
[1642563242463,2.50729226,3148.7,3148.1,0.00397896]
[1642563242661,2.80729226,3148.7,3148.1,0.00397896]
[1642563242861,0.79461,3148.5,3148.1,0.00397896]
[1642563243100,0.455,3148.4,3148.1,0.00397896]
[1642563243303,1.24956,3148.4,3148.1,0.00397896]
[1642563243500,3.17835,3148.6,3147.9,1.59058797]
[1642563243701,0.3,3148.7,3148.6,0.53172058]
[1642563243904,3.85815136,3148.8,3148.6,0.53172058]
[1642563244108,3.85815136,3148.8,3147.6,1.58547216]
[1642563244109,5.5893348,3148.6,3147.6,1.58547216]
[1642563244306,5.5893348,3148.6,3147.5,3.8583]
[1642563244307,0.79469,3148.2,3147.5,6.45715907]
[1642563244506,0.755,3148.1,3147.7,0.00511581]
[1642563245010,0.4639,3148.1,3147.5,0.00625266]
[1642563245206,1.2496655,3148.1,3147.5,0.00625266]
[1642563245607,1.58943,3148.0,3147.5,0.00625266]
[1642563245808,0.455,3147.9,3147.5,0.00625266]
[1642563246106,0.79469,3147.8,3147.5,0.00625266]
[1642563246507,0.79469,3147.8,3147.4,0.00682108]
[1642563246763,0.79469,3147.8,3147.4,1.44229324]
[1642563246953,0.00170527,3147.7,3147.1,3.73604122]
[1642563247353,0.00113684,3147.6,3147.2,0.00113685]
[1642563247754,0.00170527,3147.7,3147.2,0.00113685]
[1642563247959,0.00170527,3147.7,3147.1,1.26950805]
[1642563248158,0.79469,3147.8,3147.1,1.26950805]
[1642563248159,0.00113684,3147.6,3147.1,1.26950805]
[1642563248359,0.00227369,3147.6,3147.1,1.56950805]
[1642563248558,0.00170527,3147.5,3147.1,3.98717807]
[1642563248758,0.79469,3147.8,3147.5,0.00214311]
[1642563249171,0.00113685,3147.7,3147.5,0.00214311]
[1642563249560,1.58937,3148.1,3147.6,3.4]
[1642563249762,0.455,3147.9,3147.6,3.4]
[1642563249961,0.45613684,3147.9,3147.5,0.00214311]
[1642563250168,2.84023684,3147.9,3147.5,0.00214311]
[1642563251204,0.79475,3147.6,3147.5,0.00214311]
[1642563251607,0.79475,3147.6,3147.5,0.00327996]
[1642563253512,2.76222826,3147.6,3147.5,0.00327996]
[1642563253710,3.1790709,3147.7,3147.6,2.9932246]
[1642563254958,0.79475,3147.8,3147.6,2.9932246]
[1642563255157,1.24975,3147.8,3147.6,2.9932246]
[1642563255365,0.94885,3147.8,3147.6,2.9932246]
[1642563258304,0.94885,3147.8,3147.7,2.69791638]
[1642563260509,0.65095,3147.8,3147.7,2.69791638]
[1642563260724,0.95095,3147.8,3147.7,2.69791638]
[1642563260906,2.93486512,3147.8,3147.7,2.69791638]
[1642563261951,0.95095,3147.8,3147.7,2.69791638]
[1642563262251,2.93613263,3147.8,3147.7,2.69791638]
[1642563262453,0.95095,3147.8,3147.7,2.69791638]
[1642563262651,0.95095,3147.8,3147.6,2.9432246]
[1642563262855,2.38464,3147.7,3147.6,2.9432246]
[1642563264657,2.83964,3147.7,3147.6,2.9432246]
[1642563264858,4.86418417,3147.7,3147.6,2.9432246]
[1642563265058,2.83964,3147.7,3147.6,2.9432246]
[1642563265722,2.54144,3147.7,3147.6,2.9432246]
[1642563268020,3.54144,3147.7,3147.6,2.9432246]
[1642563269557,2.54144,3147.7,3147.6,2.9432246]
[1642563270557,4.25438725,3147.7,3147.6,2.9432246]
[1642563271160,4.55438725,3147.7,3147.6,2.9432246]
[1642563272257,2.55164,3147.7,3147.6,2.9432246]
[1642563272863,3.55164,3147.7,3147.6,2.9432246]
[1642563275813,4.84568704,3147.7,3147.6,2.9432246]
[1642563276010,4.84328704,3147.7,3147.6,2.9432246]
[1642563276310,6.42828704,3147.7,3147.6,2.9432246]
[1642563276770,6.15,3147.6,3147.5,0.00327996]
[1642563276961,8.39996,3147.6,3147.5,0.00327996]
[1642563277360,2.54996,3147.6,3147.5,0.00327996]
[1642563278162,2.8,3147.5,3147.0,1.1459]
[1642563278370,3.1797447,3147.4,3147.0,1.1459]
[1642563278664,3.51044061,3147.4,3147.1,0.00227369]
[1642563278864,2.3228157,3147.3,3147.1,0.00227369]
[1642563279070,3.42635091,3147.3,3147.0,0.00284212]
[1642563279669,1.09495,3147.3,3147.0,0.00284212]
[1642563280073,6.15,3147.1,3146.6,3.8324]
[1642563280277,6.15,3147.1,3146.0,7.722]
[1642563280278,0.7950598,3146.8,3146.0,7.722]
[1642563280517,0.455,3146.7,3146.0,7.722]
[1642563280718,6.15,3146.5,3145.2,1.59655064]
[1642563280923,1.23311649,3146.0,3145.0,3.2438682]
[1642563281116,1.23311649,3146.0,3145.3,0.00454739]
[1642563281117,2.84106,3145.9,3145.3,0.00454739]
[1642563281520,3.41978999,3145.8,3145.3,0.00454739]
[1642563281722,0.455,3145.7,3145.3,0.00454739]
[1642563282019,2.71655119,3145.7,3145.3,0.00454739]
[1642563282218,3.51191119,3145.7,3145.3,0.00454739]
[1642563282419,1.79544,3145.6,3145.3,0.00454739]
[1642563282620,1.2504035,3145.5,3145.4,2.70023587]
[1642563282921,1.2504035,3145.5,3145.4,2.70421483]
[1642563283119,0.455,3145.5,3145.4,2.70421483]
[1642563283321,1.0,3145.9,3145.4,2.70421483]
[1642563283525,0.03575681,3146.4,3145.8,1.14613059]
[1642563283526,0.455,3146.2,3145.8,1.14613059]
[1642563283720,0.455,3146.2,3145.9,2.55023587]
[1642563283721,1.2500661,3146.1,3145.9,2.55023587]
[1642563283921,1.2500661,3146.1,3145.9,2.55137272]
[1642563284120,0.79512,3146.0,3145.9,0.00113685]
[1642563284564,0.79512,3146.0,3145.4,0.00397896]
[1642563284764,0.455,3146.1,3145.4,0.00397896]
[1642563284962,0.7950129,3146.2,3145.4,0.00397896]
[1642563285163,0.7950129,3146.2,3145.4,2.75184786]
[1642563285362,0.7950129,3146.2,3145.4,1.15529722]
[1642563285561,0.7950129,3146.2,3145.5,0.00341054]
[1642563285762,3.2,3146.0,3145.5,0.00341054]
[1642563285962,2.908,3146.0,3145.7,1.49323699]
[1642563286364,2.908,3146.0,3145.8,0.00170527]
[1642563287564,2.908,3146.0,3145.7,1.74494226]
[1642563287763,2.908,3146.0,3145.7,1.49323699]
[1642563291113,2.6101,3146.0,3145.7,1.49323699]
[1642563292756,2.6101,3146.0,3145.5,1.59655064]
[1642563292757,3.40518,3146.0,3145.5,1.59655064]
[1642563293157,3.40518,3146.0,3145.6,0.00113685]
[1642563293756,4.2003,3146.0,3145.6,0.00113685]
[1642563295507,3.40518,3146.0,3145.6,0.00113685]
[1642563295717,3.40518,3146.0,3145.4,3.39122939]
[1642563296104,3.40518,3146.0,3145.5,0.00170527]
[1642563296306,0.455,3146.5,3145.6,6.15]
[1642563296519,1.59220457,3146.6,3146.4,0.01220756]
[1642563296910,1.59220457,3146.6,3146.5,7.25039036]
[1642563297106,3.28478518,3147.2,3146.5,7.25039036]
[1642563297306,0.00341054,3146.6,3146.5,7.25039036]
[1642563297506,0.00341054,3146.6,3146.5,1.25039036]
[1642563299115,0.00341054,3146.6,3146.5,3.03474754]
[1642563299364,0.00341054,3146.6,3146.5,1.25039036]
[1642563299863,0.00341054,3146.6,3146.5,3.00400685]
[1642563300065,0.00341054,3146.6,3146.5,3.01301036]
[1642563300266,0.00341054,3146.6,3146.5,1.25039036]
[1642563300665,0.00341054,3146.6,3146.5,3.08607713]
[1642563300866,0.00341054,3146.6,3146.5,1.25039036]
[1642563301066,0.00341054,3146.6,3146.5,3.02357331]
[1642563301267,0.00341054,3146.6,3146.5,3.01063433]
[1642563301466,3.78660613,3147.2,3146.6,5.25]
[1642563301672,0.79482,3147.1,3146.7,1.69143117]
[1642563301879,0.79766212,3147.1,3146.7,1.69143117]
[1642563302269,0.79766212,3147.1,3147.0,1.31151347]
[1642563303010,0.00284212,3147.1,3147.0,1.31151347]
[1642563303705,0.00284212,3147.1,3147.0,3.14030603]
[1642563303905,0.00284212,3147.1,3147.0,7.35522665]
[1642563304106,0.00284212,3147.1,3147.0,7.65522665]
[1642563304320,0.00284212,3147.1,3147.0,4.01045417]
[1642563304709,0.00284212,3147.1,3147.0,1.31151347]
[1642563304909,0.00284212,3147.1,3147.0,4.01046358]
[1642563306511,0.50601212,3147.2,3147.0,4.01046358]
[1642563306772,0.7947614,3147.4,3147.1,2.69900512]
[1642563306967,0.7947614,3147.4,3147.0,1.31151347]
[1642563306968,0.50099488,3147.1,3147.0,1.31151347]
[1642563308568,0.0283744,3147.0,3146.7,3.8598]
[1642563308769,1.59586488,3147.1,3146.0,1.1837]
[1642563308968,0.01817321,3147.0,3146.8,0.00170527]
[1642563309166,2.63316861,3147.1,3146.1,0.00568424]
[1642563309568,1.63316861,3147.1,3146.1,0.00568424]
[1642563309767,7.5744403,3147.0,3146.1,0.00568424]
[1642563309966,0.79513,3146.8,3146.1,0.00568424]
[1642563310166,2.04,3146.7,3146.0,0.00625266]
[1642563310365,2.04,3146.7,3145.8,0.00738951]
[1642563310606,4.63215387,3146.7,3145.8,0.00738951]
[1642563310807,3.88283533,3146.6,3145.6,0.00852636]
[1642563311108,0.79521,3146.1,3145.6,0.00852636]
[1642563311509,0.50571,3146.1,3145.6,0.00852636]
[1642563311710,2.55774938,3146.1,3145.6,0.00852636]
[1642563311906,0.50571,3146.1,3145.6,0.00852636]
[1642563312119,0.50571,3146.1,3144.8,0.01278134]
[1642563312120,0.01279448,3145.7,3143.4,9.11187654]
[1642563312317,0.01279448,3145.7,3143.6,3.21609222]
[1642563312318,8.72951116,3144.1,3143.6,3.21609222]
[1642563312511,0.66,3142.6,3139.9,6.69189004]
[1642563312722,2.1589,3142.5,3140.1,2.84711792]
[1642563312916,2.1589,3142.5,3139.2,0.2191947]
[1642563312917,0.01219786,3141.1,3139.2,0.2191947]
[1642563313115,23.0,3140.3,3135.1,0.01235101]
[1642563313319,5.23724635,3137.9,3135.7,0.01299838]
[1642563313520,5.93,3135.6,3133.9,0.48651491]
[1642563313723,5.93,3135.6,3135.0,0.01207093]
[1642563313724,14.1287,3135.6,3135.0,0.01207093]
[1642563313921,1.20913821,3132.8,3131.0,9.25655629]
[1642563314118,1.20618455,3132.7,3129.8,8.75356193]
[1642563314379,1.20618455,3132.7,3128.0,3.0]
[1642563314380,2.47665572,3128.2,3128.0,3.0]
[1642563314574,0.6718,3130.3,3128.1,2.0]
[1642563314774,5.50568904,3129.9,3127.9,3.0]
[1642563314970,5.50568904,3129.9,3128.1,13.77847705]
[1642563314971,18.05156703,3129.8,3128.1,13.77847705]
[1642563315172,18.05156703,3129.8,3128.1,13.22847705]
[1642563315173,14.38506703,3129.8,3128.1,13.22847705]
[1642563315369,3.20618455,3129.7,3128.2,5.67140755]
[1642563315582,3.20618455,3129.7,3128.2,4.77780755]
[1642563315583,0.012,3129.1,3128.2,4.77780755]
[1642563315774,5.52402972,3128.3,3126.4,0.01221526]
[1642563315973,5.52402972,3128.3,3127.3,0.01243998]
[1642563315974,6.42723347,3128.2,3127.3,0.01243998]
[1642563316171,5.69,3127.4,3127.0,0.0123488]
[1642563316373,5.69,3127.4,3126.2,1.1493223]
[1642563316374,2.00909478,3128.1,3127.4,1.24588031]
[1642563316569,0.1684,3127.5,3127.4,1.24588031]
[1642563316789,6.0553,3127.5,3126.5,0.012524]
[1642563316975,6.0553,3127.5,3125.9,0.01304428]
[1642563316976,21.50744262,3127.4,3125.9,0.01304428]
[1642563317181,21.50744262,3127.4,3124.6,2.91224744]
[1642563317182,6.42831427,3127.2,3124.6,2.91224744]
[1642563317376,0.07831427,3126.5,3126.0,0.00284211]
[1642563317578,0.07831427,3126.5,3122.4,4.6698]
[1642563317579,0.012,3125.6,3124.7,1.72796102]
[1642563317776,0.012,3125.6,3124.7,9.81685279]
[1642563317777,12.71,3125.4,3124.7,9.81685279]
[1642563318029,6.4702,3125.3,3124.2,1.6e-05]
[1642563318217,0.012,3125.6,3122.4,1.1615]
[1642563318218,6.35,3125.2,3124.3,2.9]
[1642563318417,0.8008133,3125.1,3123.8,1.0]
[1642563318619,0.8008133,3125.1,3121.3,2.5327141]
[1642563318620,2.455,3125.0,3121.3,2.5327141]
[1642563318821,2.455,3125.0,3117.7,1.12406461]
[1642563318822,3.0,3121.4,3120.0,1.1181293]
[1642563319023,12.04,3124.2,3121.8,1.65631347]
[1642563319024,0.13819997,3121.9,3121.8,1.65631347]
[1642563319222,0.13819997,3121.9,3117.8,0.01223163]
[1642563319223,0.5,3120.2,3119.1,0.01222384]
[1642563319424,0.00481,3120.6,3117.0,0.0127848]
[1642563319624,0.00481,3120.6,3115.9,6.3863]
[1642563319625,10.87768766,3120.8,3118.2,3.0]
[1642563319824,2.0,3121.0,3119.4,0.01201238]
[1642563319825,0.08181045,3120.7,3119.4,0.01201238]
[1642563320025,12.73,3120.5,3119.7,0.01242135]
[1642563320224,0.01236932,3120.1,3119.4,1.31952936]